lending/lending_fUSD_20260209
["ID","MTS","AMOUNT","RATE_DAILY","PERIOD"]
[404833163,1770606640948,-500.0,0.00044356,120]
[404833164,1770606640958,-500.0,0.00044356,120]
[404833165,1770606640968,-506.78815961,0.00044356,120]
[404833166,1770606640980,-500.0,0.00044356,120]
[404833167,1770606640991,-534.88144676,0.00044356,120]
[404833168,1770606641001,-500.0,0.00044356,120]
[404833169,1770606641010,-513.59887041,0.00044356,120]
[404833170,1770606641022,-500.0,0.00044356,120]
[404833171,1770606641032,-500.0,0.00044356,120]
[404833172,1770606641042,-500.0,0.00044356,120]
[404833173,1770606641051,-500.0,0.00044356,120]
[404833174,1770606641061,-500.0,0.00044356,120]
[404833175,1770606641071,-500.0,0.00044356,120]
[404833176,1770606641079,-547.76150713,0.00044356,120]
[404833177,1770606641090,-500.0,0.00044356,120]
[404833178,1770606641099,-500.0,0.00044356,120]
[404833179,1770606641110,-617.93042195,0.00044356,120]
[404833180,1770606641119,-500.0,0.00044356,120]
[404833181,1770606641130,-500.0,0.00044356,120]
[404833182,1770606641142,-500.0,0.00044356,120]
[404833183,1770606641155,-511.28772603,0.00044356,120]
[404833184,1770606641167,-500.0,0.00044356,120]
[404833185,1770606641178,-500.0,0.00044356,120]
[404833186,1770606641189,-507.39544656,0.00044356,120]
[404833187,1770606641202,-500.0,0.00044356,120]
[404833188,1770606641213,-525.13451835,0.00044356,120]
[404833189,1770606641223,-500.0,0.00044356,120]
[404833190,1770606641235,-500.0,0.00044356,120]
[404833191,1770606641245,-500.0,0.00044356,120]
[404833192,1770606641255,-500.0,0.00044356,120]
[404833193,1770606641266,-577.44704913,0.00044356,120]
[404833194,1770606641277,-500.0,0.00044356,120]
[404833195,1770606641287,-500.0,0.00044356,120]
[404833196,1770606641299,-513.9088995,0.00044356,120]
[404833197,1770606641461,-500.0,0.00044356,120]
[404833198,1770606641471,-500.0,0.00044356,120]
[404833199,1770606641480,-500.0,0.00044356,120]
[404833200,1770606641489,-518.50913652,0.00044356,120]
[404833201,1770606641499,-500.0,0.00044356,120]
[404833202,1770606641508,-508.34809128,0.00044356,120]
[404833203,1770606641517,-500.0,0.00044356,120]
[404833204,1770606641527,-500.0,0.00044356,120]
[404833205,1770606641537,-500.0,0.00044356,120]
[404833206,1770606641547,-511.73612144,0.00044356,120]
[404833207,1770606641556,-500.0,0.00044356,120]
[404833208,1770606641566,-500.0,0.00044356,120]
[404833209,1770606641575,-532.83668493,0.00044356,120]
[404833210,1770606641586,-500.0,0.00044356,120]
[404833211,1770606641595,-500.0,0.00044356,120]
[404833212,1770606641605,-500.0,0.00044356,120]
[404833213,1770606641614,-500.0,0.00044356,120]
[404833214,1770606641631,-500.0,0.00044356,120]
[404833215,1770606641641,-578.65326882,0.00044356,120]
[404833216,1770606641650,-530.42847658,0.00044356,120]
[404833217,1770606641660,-519.00116492,0.00044356,120]
[404833218,1770606641670,-224.48193609,0.00044402,120]
[404833219,1770606641679,-200.0,0.00044418,120]
[404833220,1770606641688,-200.81777997,0.00044433,7]
[404833221,1770606641698,-500.0,0.00044439,120]
[404833222,1770606641708,-500.0,0.00044439,120]
[404833223,1770606641717,-500.0,0.00044439,120]
[404833224,1770606641727,-500.0,0.00044439,120]
[404833225,1770606641737,-500.0,0.00044439,120]
[404833226,1770606641747,-500.0,0.00044439,120]
[404833227,1770606641757,-500.0,0.00044439,120]
[404833228,1770606641766,-500.0,0.00044439,120]
[404833229,1770606641778,-500.0,0.00044439,120]
[404833230,1770606641788,-500.0,0.00044439,120]
[404833231,1770606641799,-500.0,0.00044439,120]
[404833232,1770606641810,-500.0,0.00044439,120]
[404833233,1770606641819,-500.0,0.00044439,120]
[404833234,1770606641828,-500.0,0.00044439,120]
[404833235,1770606641837,-500.0,0.00044439,120]
[404833236,1770606641847,-500.0,0.00044439,120]
[404833237,1770606641856,-500.0,0.00044439,120]
[404833238,1770606641866,-500.0,0.00044439,120]
[404833239,1770606641876,-500.0,0.00044439,120]
[404833240,1770606641886,-500.0,0.00044439,120]
[404833241,1770606641895,-500.0,0.00044439,120]
[404833242,1770606641905,-500.0,0.00044439,120]
[404833243,1770606641918,-500.0,0.00044439,120]
[404833244,1770606641927,-500.0,0.00044439,120]
[404833245,1770606641936,-500.0,0.00044439,120]
[404833246,1770606641946,-500.0,0.00044439,120]
[404833247,1770606641955,-500.0,0.00044439,120]
[404833248,1770606641965,-500.0,0.00044439,120]
[404833249,1770606641977,-500.0,0.00044439,120]
[404833250,1770606641986,-500.0,0.00044439,120]
[404833251,1770606641996,-500.0,0.00044439,120]
[404833252,1770606642006,-500.0,0.00044439,120]
[404833253,1770606642017,-500.0,0.00044439,120]
[404833254,1770606642027,-500.0,0.00044439,120]
[404833255,1770606642036,-500.0,0.00044439,120]
[404833256,1770606642045,-500.0,0.00044439,120]
[404833257,1770606642054,-500.0,0.00044439,120]
[404833258,1770606642063,-500.0,0.00044439,120]
[404833259,1770606642072,-500.0,0.00044439,120]
[404833260,1770606642081,-500.0,0.00044439,120]
[404833261,1770606642090,-500.0,0.00044439,120]
[404833262,1770606642099,-500.0,0.00044439,120]
[404833263,1770606642108,-500.0,0.00044439,120]
[404833264,1770606642119,-500.0,0.00044439,120]
[404833265,1770606642128,-500.0,0.00044439,120]
[404833266,1770606642137,-500.0,0.00044439,120]
[404833267,1770606642146,-500.0,0.00044439,120]
[404833268,1770606642160,-500.0,0.00044439,120]
[404833270,1770606642170,-500.0,0.00044439,120]
[404833271,1770606642179,-500.0,0.00044439,120]
[404833272,1770606642188,-500.0,0.00044439,120]
[404833273,1770606642198,-500.0,0.00044439,120]
[404833274,1770606642208,-500.0,0.00044439,120]
[404833275,1770606642217,-500.0,0.00044439,120]
[404833276,1770606642233,-500.0,0.00044439,120]
[404833277,1770606642242,-500.0,0.00044439,120]
[404833278,1770606642251,-500.0,0.00044439,120]
[404833279,1770606642261,-500.0,0.00044439,120]
[404833280,1770606642270,-500.0,0.00044439,120]
[404833281,1770606642279,-500.0,0.00044439,120]
[404833282,1770606642288,-500.0,0.00044439,120]
[404833283,1770606642298,-500.0,0.00044439,120]
[404833284,1770606642307,-500.0,0.00044439,120]
[404833285,1770606642316,-500.0,0.00044439,120]
[404833286,1770606642326,-500.0,0.00044439,120]
[404833287,1770606642335,-500.0,0.00044439,120]
[404833288,1770606642344,-500.0,0.00044439,120]
[404833289,1770606642353,-500.0,0.00044439,120]
[404833290,1770606642364,-500.0,0.00044439,120]
[404833291,1770606642373,-500.0,0.00044439,120]
[404833292,1770606642383,-500.0,0.00044439,120]
[404833293,1770606642392,-500.0,0.00044439,120]
[404833294,1770606642401,-500.0,0.00044439,120]
[404833295,1770606642410,-500.0,0.00044439,120]
[404833296,1770606642419,-500.0,0.00044439,120]
[404833297,1770606642428,-500.0,0.00044439,120]
[404833298,1770606642437,-500.0,0.00044439,120]
[404833299,1770606642446,-500.0,0.00044439,120]
[404833300,1770606642456,-500.0,0.00044439,120]
[404833301,1770606642467,-500.0,0.00044439,120]
[404833302,1770606642476,-500.0,0.00044439,120]
[404833303,1770606642485,-500.0,0.00044439,120]
[404833304,1770606642495,-500.0,0.00044439,120]
[404833305,1770606642504,-500.0,0.00044439,120]
[404833306,1770606642514,-500.0,0.00044439,120]
[404833307,1770606642523,-500.0,0.00044439,120]
[404833308,1770606642533,-746.0,0.00044439,120]
[404833309,1770606642542,-500.0,0.0004444,120]
[404833310,1770606642552,-556.74,0.0004444,120]
[404833311,1770606642561,-20000.0,0.00044441,120]
[404833312,1770606642571,-31408.1905667,0.00044441,2]
[404833313,1770606642582,-500.0,0.00044442,120]
[404833314,1770606642591,-500.0,0.00044442,120]
[404833315,1770606642601,-500.0,0.00044442,120]
[404833316,1770606642610,-500.0,0.00044442,120]
[404833317,1770606642620,-500.0,0.00044442,120]
[404833318,1770606642630,-500.0,0.00044442,120]
[404833319,1770606642639,-163.33854644,0.00044442,120]
[404833320,1770606642650,-500.0,0.00044442,120]
[404833321,1770606642659,-500.0,0.00044442,120]
[404833322,1770606642670,-500.0,0.00044442,120]
[404833323,1770606642679,-500.0,0.00044442,120]
[404833324,1770606642690,-500.0,0.00044442,120]
[404833325,1770606642699,-591.16857922,0.00044442,120]
[404833326,1770606642710,-556.74,0.00044442,120]
[404833327,1770606642720,-556.74,0.00044442,120]
[404833328,1770606642730,-556.74,0.00044442,120]
[404833329,1770606642740,-556.74,0.00044442,120]
[404833330,1770606642750,-556.74,0.00044442,120]
[404833331,1770606642759,-556.74,0.00044442,120]
[404833332,1770606642769,-556.97857873,0.00044442,120]
[404833333,1770606642778,-366.5085985,0.00044442,120]
[404833334,1770606642788,-245.02312797,0.00044442,120]
[404833335,1770606642797,-500.0,0.00044442,120]
[404833336,1770606642807,-200.0,0.00044442,120]
[404833337,1770606642818,-200.0,0.00044442,120]
[404833338,1770606642829,-200.0,0.00044442,120]
[404833339,1770606642839,-350.0,0.00044442,120]
[404833340,1770606642849,-116726.66314333,0.00044443,54]
[404833341,1770606642858,-151.0,0.00044443,120]
[404833342,1770606642869,-154.876343,0.00044443,120]
[404833343,1770606642879,-154.248476,0.00044443,60]
[404833344,1770606642888,-151.0,0.00044443,120]
[404833345,1770606642897,-167.059965,0.00044443,120]
[404833346,1770606642906,-150.0,0.00044443,30]
[404833347,1770606642915,-150.00000001,0.00044443,30]
[404833348,1770606642925,-150.0,0.00044443,30]
[404833349,1770606642934,-150.0,0.00044443,30]
[404833350,1770606642943,-151.0,0.00044443,120]
[404833351,1770606642952,-151.0,0.00044443,120]
[404833352,1770606642962,-151.0,0.00044443,120]
[404833354,1770606642971,-151.0,0.00044443,120]
[404833356,1770606642981,-151.0,0.00044443,120]
[404833358,1770606642990,-151.0,0.00044443,120]
[404833361,1770606642999,-151.0,0.00044443,120]
[404833364,1770606643009,-151.0,0.00044443,120]
[404833366,1770606643019,-151.0,0.00044443,120]
[404833367,1770606643028,-151.0,0.00044443,120]
[404833368,1770606643037,-151.0,0.00044443,120]
[404833369,1770606643046,-258.800804,0.00044443,120]
[404833370,1770606643055,-222.507717,0.00044443,120]
[404833371,1770606643066,-155.222338,0.00044443,120]
[404833372,1770606643075,-251.165894,0.00044443,120]
[404833373,1770606643085,-257.651606,0.00044443,120]
[404833374,1770606643095,-228.686269,0.00044443,120]
[404833375,1770606643104,-151.0,0.00044443,120]
[404833376,1770606643114,-5000.0,0.00044443,120]
[404833377,1770606643124,-151.0,0.00044443,120]
[404833378,1770606643133,-5000.0,0.00044443,120]
[404833379,1770606643142,-5000.0,0.00044443,120]
[404833380,1770606643155,-151.0,0.00044443,120]
[404833381,1770606643165,-5000.0,0.00044443,120]
[404833382,1770606643176,-156.529385,0.00044443,120]
[404833383,1770606643186,-5000.0,0.00044443,120]
[404833384,1770606643196,-5000.0,0.00044443,120]
[404833385,1770606643209,-5000.0,0.00044443,120]
[404833386,1770606643219,-5000.0,0.00044443,120]
[404833387,1770606643229,-5000.0,0.00044443,120]
[404833388,1770606643239,-5000.0,0.00044443,120]
[404833389,1770606643248,-5000.0,0.00044443,120]
[404833390,1770606643258,-5000.0,0.00044443,120]
[404833391,1770606643267,-3085.669753,0.00044443,120]
[404833392,1770606643276,-151.0,0.00044443,120]
[404833393,1770606643285,-151.0,0.00044443,120]
[404833394,1770606643295,-151.0,0.00044443,120]
[404833395,1770606643305,-151.0,0.00044443,120]
[404833396,1770606643316,-151.0,0.00044443,120]
[404833397,1770606643327,-228.211159,0.00044443,120]
[404833398,1770606643339,-177.909811,0.00044443,7]
[404833399,1770606643349,-177.909811,0.00044443,7]
[404833400,1770606643358,-177.909811,0.00044443,7]
[404833401,1770606643368,-177.909811,0.00044443,7]
[404833402,1770606643377,-177.909811,0.00044443,7]
[404833403,1770606643386,-177.909811,0.00044443,7]
[404833404,1770606643396,-177.909811,0.00044443,7]
[404833405,1770606643406,-177.909811,0.00044443,7]
[404833406,1770606643415,-177.909811,0.00044443,7]
[404833407,1770606643425,-177.909811,0.00044443,7]
[404833408,1770606643434,-177.909811,0.00044443,7]
[404833409,1770606643447,-177.909811,0.00044443,7]
[404833410,1770606643457,-177.909811,0.00044443,7]
[404833411,1770606643466,-177.909811,0.00044443,7]
[404833412,1770606643475,-177.909811,0.00044443,7]
[404833413,1770606643484,-177.909811,0.00044443,7]
[404833414,1770606643494,-177.909811,0.00044443,7]
[404833415,1770606643503,-177.909811,0.00044443,7]
[404833416,1770606643512,-177.909811,0.00044443,7]
[404833417,1770606643522,-177.909811,0.00044443,7]
[404833418,1770606643531,-2111832.82659199,0.00044443,10]
[404833419,1770606643551,-14140.0,0.00044443,10]
[404833420,1770606643562,-3604.8,0.00044443,10]
[404833421,1770606643573,-748.26893567,0.00044443,10]
[404833422,1770606643584,-259804.78450046,0.00044443,10]
[404833423,1770606643595,-1185.97986445,0.00044443,10]
[404833424,1770606643693,-468.37,0.0003878,15]
[404833425,1770606643705,-31.63,0.0003878,15]
[404833426,1770606643715,-500.0,0.0003878,15]
[404833427,1770606643725,-500.0,0.0003878,15]
[404833428,1770606643735,-500.0,0.0003878,15]
[404833429,1770606643745,-286.50429356,0.0003878,15]
[404833430,1770606643754,-252.94032068,0.0003878,15]
[404833431,1770606643764,-436232.25095745,0.00044443,10]
[404833432,1770606643777,-1200.38502704,0.00044443,10]
[404833433,1770606643788,-588.00932753,0.00044443,10]
[404833434,1770606643877,-1351.84388163,0.00044443,10]
[404833435,1770606643888,-723.489586,0.00044443,10]
[404833436,1770606643898,-8597.50389652,0.00044443,10]
[404833437,1770606643968,-425.89028401,0.0003878,15]
[404833438,1770606643978,-500.0,0.0004,5]
[404833439,1770606643988,-228.04625164,0.00040548,5]
[404833440,1770606643998,-2451.06346435,0.00044443,10]
[404833441,1770606644018,-1062.6672319,0.00044443,10]
[404833442,1770606644029,-293.47590332,0.00044443,10]
[404833443,1770606644041,-7222.24352672,0.00044443,10]
[404833444,1770606644073,-637730.99999968,0.00044443,10]
[404833445,1770606644084,-432.75,0.00044443,10]
[404833447,1770606644235,-28.90630957,0.00044443,10]
[404833448,1770606645495,-500.0,0.0003878,2]
[404833449,1770606645507,-502.1425719,0.0003878,2]
[404833450,1770606645516,-3070.56653142,0.00044443,10]
[404833451,1770606645527,-365.02520769,0.00044443,10]
[404833452,1770606645600,-412.93364697,0.00044443,10]
[404833453,1770606645654,-2160.0,0.00044443,10]
[404833456,1770607356169,870.82,0.00035616,30]
[404833457,1770607526977,1063.54173058,0.00017999,5]
[404833458,1770607527045,1063.54173058,0.00034463,30]
[404833459,1770607527109,1063.54173059,0.00034463,30]
[404833460,1770607555075,393.28193772,0.00034463,30]
[404833461,1770607569369,245.4950988,0.00031485,120]
[404833462,1770607571043,151.0,0.00017997,2]
[404833463,1770607591611,174.59,0.00030137,30]
[404833464,1770607594069,500.0,0.00017999,2]
[404833465,1770607594099,173.81658168,0.00017999,2]
[404833466,1770607594418,562.81054926,0.00017999,2]
[404833467,1770607594446,298.12319881,0.00017999,2]
[404833468,1770607596895,420.56243792,0.00017999,2]
[404833469,1770607596926,500.0,0.00017999,2]
[404833470,1770607596956,500.0,0.00017999,2]
[404833471,1770607596985,500.0,0.00017999,2]
[404833472,1770607597020,500.0,0.00017999,2]
[404833473,1770607597060,500.0,0.00017999,2]
[404833474,1770607597097,500.0,0.00017999,2]
[404833475,1770607597126,500.0,0.00017999,2]
[404833476,1770607597159,500.0,0.00017999,2]
[404833477,1770607597192,500.0,0.00017999,2]
[404833478,1770607597221,500.0,0.00017999,2]
[404833479,1770607597253,500.0,0.00017999,2]
[404833480,1770607597284,500.0,0.00017999,2]
[404833481,1770607597317,500.0,0.00017999,2]
[404833482,1770607597348,500.0,0.00017999,2]
[404833483,1770607597378,500.0,0.00017999,2]
[404833484,1770607597413,500.0,0.00017999,2]
[404833485,1770607597446,44.69723233,0.00017999,2]
[404833486,1770607597473,455.30276767,0.00017999,2]
[404833487,1770607597506,500.0,0.00017999,2]
[404833488,1770607597538,500.0,0.00017999,2]
[404833489,1770607597568,500.0,0.00017999,2]
[404833490,1770607597602,500.0,0.00017999,2]
[404833491,1770607597637,500.0,0.00017999,2]
[404833492,1770607597667,500.0,0.00017999,2]
[404833493,1770607597700,500.0,0.00017999,2]
[404833494,1770607597731,500.0,0.00017999,2]
[404833495,1770607597761,500.0,0.00017999,2]
[404833496,1770607597794,500.0,0.00017999,2]
[404833497,1770607597824,500.0,0.00017999,2]
[404833498,1770607597859,500.0,0.00017999,2]
[404833499,1770607597893,500.0,0.00017999,2]
[404833500,1770607597925,500.0,0.00017999,2]
[404833501,1770607597956,500.0,0.00017999,2]
[404833502,1770607597985,500.0,0.00017999,2]
[404833503,1770607598019,500.0,0.00017999,2]
[404833504,1770607598052,420.17944528,0.00017999,2]
[404833505,1770607598088,500.0,0.00017999,2]
[404833506,1770607598119,124.52778705,0.00017999,2]
[404833507,1770607598144,375.47221295,0.00017999,2]
[404833508,1770607598176,500.0,0.00017999,2]
[404833509,1770607598211,500.0,0.00017999,2]
[404833510,1770607598243,500.0,0.00017999,2]
[404833511,1770607598275,500.0,0.00017999,2]
[404833512,1770607598311,500.0,0.00017999,2]
[404833513,1770607598340,500.0,0.00017999,2]
[404833514,1770607598372,500.0,0.00017999,2]
[404833515,1770607598406,500.0,0.00017999,2]
[404833516,1770607598439,500.0,0.00017999,2]
[404833517,1770607598477,500.0,0.00017999,2]
[404833518,1770607598511,500.0,0.00017999,2]
[404833519,1770607598550,500.0,0.00017999,2]
[404833520,1770607598582,500.0,0.00017999,2]
[404833521,1770607598617,500.0,0.00017999,2]
[404833522,1770607598651,500.0,0.00017999,2]
[404833523,1770607598693,500.0,0.00017999,2]
[404833524,1770607598732,500.0,0.00017999,2]
[404833525,1770607598773,500.0,0.00017999,2]
[404833526,1770607598810,168.91205532,0.00017999,2]
[404833527,1770607611990,7331.09794468,0.000162,5]
[404833528,1770607612013,6845.47205532,0.000162,5]
[404833529,1770607621347,300.0,0.00017999,2]
[404833530,1770607621628,550.0,0.00017999,2]
[404833531,1770607622007,300.0,0.00017999,2]
[404833532,1770607635162,1900.0,0.000178,6]
[404833533,1770607637261,3800.0,0.000179,6]
[404833534,1770607681250,300.0,0.00017999,2]
[404833535,1770607697886,2850.01,0.000179,2]
[404833536,1770607697909,743.6102888,0.000179,2]
[404833537,1770607716200,7143.1154524,0.0001,2]
[404833538,1770607730374,154.65495432,0.000179,2]
[404833539,1770607757191,-5344.28839,0.00018,2]
[404833540,1770607768607,5000.01,0.000179,2]
[404833541,1770607768628,5000.01,0.000179,2]
[404833542,1770607768649,1012.6182741,0.000179,2]
[404833543,1770607797523,6363.11402014,0.000179,2]
[404833544,1770607801555,1200.0,0.00017999,2]
[404833545,1770607801584,300.0,0.00017999,2]
[404833546,1770607801616,550.0,0.00017999,2]
[404833547,1770607801643,300.0,0.00017999,2]
[404833548,1770607807950,208.68623917,0.00017999,2]
[404833549,1770607812664,151.0,0.00017997,2]
[404833550,1770607813129,151.0,0.00017997,2]
[404833551,1770607813539,154.07077507,0.00017997,2]
[404833552,1770607816309,622.13896562,0.000179,2]
[404833553,1770607816331,6005.06949065,0.000179,2]
[404833554,1770607817792,1424.62144858,0.000179,2]
[404833555,1770607821609,200.81777998,0.0001799,2]
[404833556,1770607821712,500.0,0.00017999,2]
[404833557,1770607821786,500.0,0.00017999,2]
[404833558,1770607821821,500.0,0.00017999,2]
[404833559,1770607821870,500.0,0.00017999,2]
[404833560,1770607821916,369.50128079,0.00017999,2]
[404833561,1770607821940,130.49871921,0.00017999,2]
[404833562,1770607821982,500.0,0.00017999,2]
[404833563,1770607822068,500.0,0.00017999,2]
[404833564,1770607822104,316.89120553,0.00017999,2]
[404833573,1770607831454,-1896.30695405,0.00018,2]
[404833577,1770607831509,-5674.79778011,0.00018,2]
[404833578,1770607831520,-10749.43756616,0.00018,2]
[404833579,1770607831536,-1672.81804228,0.00018,2]
[404833580,1770607831550,-758.78,0.00018,2]
[404833581,1770607831562,-52246.73360021,0.00018,2]
[404833582,1770607831573,-2300.0,0.00018,2]
[404833583,1770607831584,-1887.52207154,0.00018,2]
[404833584,1770607831595,-4261.8712743,0.00018,2]
[404833585,1770607831607,-293.41849261,0.00018,2]
[404833586,1770607831677,-865.07238644,0.00018,2]
[404833587,1770607831731,-81232.0,0.00018,2]
[404833588,1770607831742,-6832.10080246,0.00018,2]
[404833590,1770607837740,-15991.66234499,0.00018,2]
[404833591,1770607837761,-8150.2,0.00018,2]
[404833592,1770607837773,-1300.6176767,0.00018,2]
[404833593,1770607837786,-4150.70316796,0.00018,2]
[404833594,1770607837821,-2253.09560657,0.00018,2]
[404833595,1770607837833,-1417778.28874305,0.00018,2]
[404833596,1770607837843,-3012045.51215132,0.00018,2]
[404833597,1770607837853,-172.65,0.00018,3]
[404833598,1770607837863,-1781.49378135,0.000181,2]
[404833599,1770607837873,-250.0,0.0001811,2]
[404833600,1770607837885,-198.93640224,0.0001811,2]
[404833601,1770607837894,-729.30837507,0.0001813,2]
[404833604,1770607837907,-300.0,0.0001822,2]
[404833606,1770607837917,-250.0,0.0001827,2]
[404833607,1770607837926,-1994.8768935,0.0001834,2]
[404833610,1770607837936,-302.13678667,0.00018352,2]
[404833611,1770607837946,-480.67385401,0.0001844,2]
[404833612,1770607837958,-187.11648452,0.0001844,2]
[404833613,1770607837968,-458.0,0.00018548,2]
[404833614,1770607837977,-275.0,0.00018548,2]
[404833615,1770607837986,-183.0,0.00018548,2]
[404833616,1770607837996,-1145.84487387,0.00019,2]
[404833617,1770607838005,-935.0,0.00019079,2]
[404833618,1770607838014,-200.23286085,0.00019082,2]
[404833619,1770607838023,-420.0,0.00019639,2]
[404833620,1770607838032,-407.0,0.00019639,2]
[404833621,1770607838042,-1680.0,0.00019735,2]
[404833622,1770607838052,-500.0,0.00019787,3]
[404833623,1770607838061,-300.0,0.000198,2]
[404833624,1770607838071,-250.0,0.000198,2]
[404833625,1770607838080,-195.0,0.000198,2]
[404833626,1770607838089,-4930.70056391,0.000199,3]
[404833627,1770607838099,-5800.0,0.000199,7]
[404833628,1770607838111,-50011.85706841,0.0001999,2]
[404833629,1770607838120,-1994.87689347,0.00020124,2]
[404833630,1770607838130,-655.0,0.00020231,2]
[404833631,1770607838139,-729.30837507,0.00020668,2]
[404833632,1770607838148,-48810.72458322,0.00021,2]
[404833633,1770607838157,-587.0,0.00021428,2]
[404833634,1770607838166,-2351.0,0.00021639,2]
[404833635,1770607838176,-1994.87689347,0.00021909,2]
[404833636,1770607838186,-729.30837507,0.00021936,2]
[404833637,1770607838195,-174.11,0.00022835,2]
[404833638,1770607838204,-729.30837507,0.00023205,2]
[404833639,1770607838214,-823.0,0.00023381,2]
[404833640,1770607838223,-1994.87689347,0.00023693,2]
[404833641,1770607838233,-3292.0,0.00023727,2]
[404833642,1770607838243,-250.0,0.00024061,2]
[404833643,1770607838252,-176691.92163685,0.000241,2]
[404833644,1770607838261,-729.30837507,0.00024474,2]
[404833645,1770607838271,-1994.87689347,0.00025478,2]
[404833646,1770607838281,-205.0,0.00025511,2]
[404833647,1770607838290,-4609.0,0.00026016,2]
[404833648,1770607838299,-1225.47,0.00026543,2]
[404833649,1770607838308,-4451.1065,0.00026767,10]
[404833650,1770607838317,-165.44,0.00026773,2]
[404833651,1770607838327,-1172.02,0.000268,2]
[404833652,1770607838336,-729.30837507,0.00027012,2]
[404833653,1770607838345,-1994.87689347,0.00027262,2]
[404833654,1770607838355,-285.67,0.00027304,2]
[404833655,1770607838364,-729.30837507,0.0002828,2]
[404833656,1770607838373,-4586.14,0.00028381,2]
[404833657,1770607838383,-4246.0,0.00028526,2]
[404833658,1770607838393,-9758.95,0.00028615,2]
[404833659,1770607838402,-1000.0,0.00028657,20]
[404833660,1770607838412,-1994.87689347,0.00029047,2]
[404833661,1770607838421,-729.30837507,0.00029549,2]
[404833662,1770607838431,-151.0,0.00029747,2]
[404833663,1770607838442,-151.0,0.00029747,2]
[404833664,1770607838457,-151.0,0.00029747,2]
[404833665,1770607838467,-151.0,0.00029747,2]
[404833666,1770607838476,-151.0,0.00029747,2]
[404833667,1770607838486,-151.0,0.00029747,2]
[404833668,1770607838496,-167.67986194,0.00029747,2]
[404833669,1770607838506,-507.13646079,0.0003013,2]
[404833670,1770607838516,-299.99,0.0003062,12]
[404833671,1770607838525,-3353.3,0.0003062,2]
[404833672,1770607838537,-729.30837507,0.00030818,2]
[404833673,1770607838547,-1994.87689347,0.00030831,2]
[404833674,1770607838556,-6363.11402013,0.00031127,2]
[404833675,1770607838565,-154.6549543,0.00031128,2]
[404833676,1770607838576,-1424.62144857,0.00031128,2]
[404833677,1770607838586,-165.44,0.00031192,2]
[404833678,1770607838596,-1479.11165976,0.0003121,2]
[404833679,1770607838607,-729.30837507,0.00032087,2]
[404833680,1770607838616,-1994.87689347,0.00032616,2]
[404833681,1770607838626,-187.11648452,0.00032616,2]
[404833682,1770607838635,-511.0,0.00032616,2]
[404833683,1770607838645,-194.61,0.000333,14]
[404833684,1770607838654,-729.30837507,0.00033356,2]
[404833685,1770607838663,-187.11648452,0.00033381,2]
[404833686,1770607838673,-7700.0,0.000338,12]
[404833687,1770607838682,-9600.0,0.000339,12]
[404833688,1770607838691,-150.0,0.00034189,7]
[404833689,1770607838701,-150.0,0.00034189,2]
[404833690,1770607838711,-150.0,0.00034244,7]
[404833691,1770607838721,-253.69312086,0.00034299,7]